fUST/lending_fUST_20250927
["ID","MTS","AMOUNT","RATE_DAILY","PERIOD"]
[387847069,1758925832326,-420.0,0.00030666,2]
[387847072,1758925832340,-789.0,0.00031003,2]
[387847074,1758925832354,-214.46252285,0.000314,5]
[387847076,1758925832365,-2819.26691222,0.00031627,2]
[387847093,1758925832518,-11726.13365171,0.00031673,2]
[387847095,1758925832527,-272.3819706,0.00031675,16]
[387847097,1758925832537,-590.81273062,0.00031692,2]
[387847099,1758925832547,-500.0,0.00031692,2]
[387847101,1758925832557,-1000.0,0.00031694,120]
[387847103,1758925832566,-22298.659812,0.00031707,2]
[387847105,1758925832575,-4795.57177405,0.00031707,2]
[387847107,1758925832584,-506.66,0.00031707,3]
[387847109,1758925832594,-253.33,0.00031707,3]
[387847111,1758925832603,-760.0,0.00031707,3]
[387847113,1758925832613,-27621.23901723,0.00031717,2]
[387847115,1758925832624,-16976.08060667,0.00031717,2]
[387847116,1758925832633,-9591.1435481,0.00031717,2]
[387847117,1758925832643,-1013.31,0.00031717,3]
[387847118,1758925832652,-23591.54186552,0.00031727,2]
[387847119,1758925832663,-34960.46366214,0.00031727,2]
[387847183,1758925837721,-923.40681692,0.00028947,2]
[387847184,1758925837730,-330.35064481,0.00028999,2]
[387847185,1758925837739,-188.03622553,0.00028999,2]
[387847186,1758925837748,-500.0,0.00028999,2]
[387847187,1758925837757,-500.0,0.00028999,2]
[387847188,1758925837767,-248.73631274,0.00028999,2]
[387847189,1758925837778,-251.26368726,0.00028999,2]
[387847190,1758925837787,-500.0,0.00028999,2]
[387847191,1758925837796,-278.30578758,0.00028999,2]
[387847192,1758925837806,-221.69421242,0.00028999,2]
[387847193,1758925837815,-430.96648902,0.00028999,2]
[387847194,1758925837831,-69.03351098,0.00028999,2]
[387847195,1758925837840,-500.0,0.00028999,2]
[387847196,1758925837849,-563.96571429,0.00028999,2]
[387847197,1758925837858,-500.0,0.00028999,2]
[387847198,1758925837867,-119837.27296834,0.00031727,2]
[387847199,1758925837876,-38364.5741924,0.00031727,2]
[387847200,1758925837885,-370000.0,0.00031737,2]
[387847201,1758925837894,-2819.2669122,0.00031743,2]
[387847202,1758925837903,-500.0,0.00031773,5]
[387847203,1758925837912,-500.0,0.00031773,5]
[387847204,1758925837921,-500.0,0.00031773,5]
[387847205,1758925837929,-500.0,0.00031773,5]
[387847206,1758925837939,-500.0,0.00031773,5]
[387847207,1758925837947,-500.0,0.00031773,5]
[387847208,1758925837957,-500.0,0.000318,5]
[387847209,1758925837966,-151.0,0.000318,20]
[387847210,1758925837975,-440.0,0.00031831,120]
[387847211,1758925837984,-2819.2669122,0.0003186,2]
[387847212,1758925837993,-151.0,0.000319,19]
[387847213,1758925838002,-151.0,0.000319,12]
[387847214,1758925838012,-4795.57177405,0.00031926,2]
[387847215,1758925838021,-11726.1336517,0.00031937,2]
[387847216,1758925838030,-2819.2669122,0.00031976,2]
[387847217,1758925838039,-214.60596598,0.00032,120]
[387847218,1758925838049,-554.47419237,0.00032,120]
[387847219,1758925838059,-426.44813954,0.00032,120]
[387847220,1758925838067,-169.62692056,0.00032,120]
[387847221,1758925838077,-183.28330123,0.00032,120]
[387847222,1758925838086,-151.0,0.00032,15]
[387847223,1758925838095,-151.0,0.00032,16]
[387847224,1758925838104,-151.85223583,0.00032069,30]
[387847225,1758925838114,-2819.2669122,0.00032092,2]
[387847226,1758925838123,-500.0,0.000321,5]
[387847227,1758925838131,-151.0,0.000321,18]
[387847228,1758925838140,-151.0,0.000321,13]
[387847229,1758925838150,-5614097.84903741,0.00032122,20]
[387847230,1758925838161,-13479.76816946,0.00032122,20]
[387847231,1758925838172,-442.91950238,0.00032122,20]
[387847234,1758925839899,-361.71497975,0.00029388,2]
[387847235,1758925839911,-561.69183715,0.00029388,2]
[387847236,1758925839921,-140870.62240223,0.00032122,20]
[387847237,1758925839933,-42122.46984698,0.00032122,20]
[387847238,1758925841831,-176.13292006,0.00032122,20]
[387847240,1758925841843,-300.0,0.00032122,20]
[387847275,1758925842868,-851.3836238,0.00032122,20]
[387847280,1758925843190,5000.0,0.00025205,2]
[387847293,1758925851218,137.72403534,0.00025205,2]
[387847294,1758925851240,4862.27596466,0.00025205,2]
[387847308,1758925867472,5000.0,0.00025205,2]
[387847309,1758925869275,137.73403534,8.8e-07,2]
[387847310,1758925869297,15.26596466,8.8e-07,2]
[387847311,1758925887115,222.26,0.000249,2]
[387847312,1758925890308,5000.0,0.00025205,2]
[387847326,1758925898348,205.71602571,0.00025205,2]
[387847327,1758925913789,4556.76800963,0.00025205,2]
[387847328,1758925913814,443.23199037,0.00025205,2]
[387847329,1758925914462,300.0,0.000252,2]
[387847331,1758925936903,5000.0,0.00025205,2]
[387847332,1758925945336,4256.77800963,0.00025205,2]
[387847333,1758925945359,649.08157629,0.00025205,2]
[387847334,1758925953428,2604.85155539,0.00025205,2]
[387847336,1758925965563,3538.84937043,0.00025205,2]
[387847337,1758925972752,-160.0,0.00025205,2]
[387847338,1758925973594,1899.40739042,0.00025205,2]
[387847339,1758925975203,235.52592866,0.000252,2]
[387847342,1758925981277,219.08020896,0.00023425,10]
[387847343,1758925989022,2637.62137654,0.00025205,2]
[387847344,1758925997037,1054.07988817,0.00025205,2]
[387847345,1758925999169,259.95421182,0.000199,2]
[387847346,1758925999197,111.15204488,0.000199,2]
[387847347,1758925999468,371.10625668,0.00021372,2]
[387847348,1758925999893,371.10625668,0.00024316,2]
[387847349,1758926000009,371.10625668,0.00022844,2]
[387847350,1758926001290,-273.32426361,0.00025788,4]
[387847351,1758926004917,-97.78199307,0.00025788,4]
[387847352,1758926012198,1054.06988817,0.00025205,2]
[387847353,1758926034711,300.0,0.000252,2]
[387847355,1758926094233,300.0,0.000252,2]
[387847356,1758926107340,299.99,0.00025205,2]
[387847357,1758926169841,326.50196814,0.000199,2]
[387847358,1758926169987,129.26253602,0.00024316,2]
[387847359,1758926170012,197.23943194,0.00024316,2]
[387847360,1758926170135,326.50196796,0.00021372,2]
[387847361,1758926170551,326.50196796,0.00022844,2]
[387847362,1758926178315,1092.083,0.00027968,120]
[387847364,1758926224743,-244.93902412,0.00025788,4]
[387847366,1758926281286,153.63,0.00018182,2]
[387847367,1758926281590,153.63,0.00018182,2]
[387847368,1758926295180,166.0,0.00022877,8]
[387847369,1758926340881,445.10519337,0.000199,2]
[387847370,1758926341500,445.10519309,0.00022844,2]
[387847371,1758926341611,445.10519309,0.00024316,2]
[387847372,1758926341663,445.10519309,0.00021372,2]
[387847373,1758926361728,858.21382722,0.00025205,2]
[387847375,1758926384294,300.0,0.00025205,2]
[387847377,1758926395250,300.0,0.000214,2]
[387847385,1758926455596,300.0,0.000214,2]
[387847386,1758926479315,265.35890562,0.00025205,2]
[387847387,1758926501188,417.15472785,0.00025205,2]
[387847388,1758926501586,417.15472785,0.00025,30]
[387847389,1758926502001,417.15472785,0.00026,60]
[387847390,1758926502669,293.12594824,0.00025205,2]
[387847391,1758926511076,313.5358181,0.000199,2]
[387847392,1758926511642,313.53581786,0.00024316,2]
[387847393,1758926512013,256.48959409,0.00022844,2]
[387847394,1758926512043,57.04622377,0.00022844,2]
[387847395,1758926512087,313.53581786,0.00021372,2]
[387847396,1758926514159,154.05177908,0.000214,2]
[387847397,1758926520470,834.3094557,0.00025205,2]
[387847398,1758926532904,645.53723375,0.00025205,2]
[387847406,1758926574645,300.0,0.000252,2]
[387847411,1758926584988,300.0,0.000252,2]
[387847416,1758926598132,160.0,0.00025205,2]
[387847423,1758926608906,176.0,0.00022849,8]
[387847447,1758926680901,506.35603679,0.000199,2]
[387847448,1758926680957,506.35603677,0.00022844,2]
[387847449,1758926681169,506.35603677,0.00024316,2]
[387847454,1758926800589,5000.0,0.00025205,2]
[387847455,1758926808406,2058.35742011,0.00025205,2]
[387847456,1758926839100,-155.0,0.00025589,17]
[387847457,1758926839123,-169.74315109,0.00025687,2]
[387847458,1758926839149,-283.88622392,0.00025788,4]
[387847459,1758926850348,397.50624035,0.000199,2]
[387847460,1758926850970,389.07822921,0.00024316,2]
[387847461,1758926850997,8.42801111,0.00024316,2]
[387847462,1758926851217,397.50624032,0.00021372,2]
[387847463,1758926851320,397.50624032,0.00022844,2]
[387847465,1758926868098,1521.28945854,0.00025205,2]
[387847466,1758926923315,168.0,0.00022877,8]
[387847467,1758926936409,300.0,0.000252,2]
[387847468,1758926947211,300.0,0.000252,2]
[387847469,1758926948131,-153.13388744,0.00026177,2]
[387847470,1758926948152,-6647.1231187,0.00026178,2]
[387847471,1758926948172,-192.069386,0.00026362,2]
[387847472,1758926948192,-189.243854,0.00026405,2]
[387847473,1758926953087,-282.9667533,0.00026846,2]
[387847474,1758926955422,41.70386176,0.00026312,2]
[387847475,1758926958718,300.0,0.000252,2]
[387847476,1758926970437,300.0,0.000252,2]
[387847477,1758926985476,300.0,0.00025205,2]
[387847478,1758926995168,300.0,0.000252,2]
[387847479,1758927007330,300.0,0.000252,2]
[387847480,1758927020009,551.57504219,0.000199,2]
[387847481,1758927020166,551.57504214,0.00022844,2]
[387847482,1758927020313,551.57504214,0.00021372,2]
[387847483,1758927020935,551.57504214,0.00024316,2]
[387847484,1758927031087,4556.6965543,0.00021122,2]
[387847501,1758927032085,-551.57504214,0.00025788,4]
[387847502,1758927032096,-365.36729041,0.00026177,2]
[387847503,1758927032105,-311.47637428,0.00026177,2]
[387847504,1758927032114,-903.40007707,0.00026238,2]
[387847505,1758927032131,-96.59992293,0.00026238,2]
[387847506,1758927032141,-321.23522734,0.00026312,2]
[387847507,1758927032151,-406.60484973,0.00026847,2]
[387847508,1758927032161,-793.39515027,0.00026847,2]
[387847509,1758927032171,-165.0,0.0002726,24]
[387847510,1758927032180,-859.72210152,0.00027522,2]
[387847511,1758927032189,-174.00897463,0.00027522,2]
[387847512,1758927032198,-1200.0,0.00027617,2]
[387847513,1758927032208,-300.0,0.00027618,2]
[387847514,1758927032217,-191.0,0.00027618,2]
[387847515,1758927032326,-300.0,0.00027618,2]
[387847516,1758927032341,-40123.54299421,0.00027619,2]
[387847517,1758927032350,-5000.0,0.00027622,2]
[387847518,1758927032359,-500.0,0.00027673,5]
[387847519,1758927032369,-500.0,0.00027673,5]
[387847520,1758927032378,-24.12572621,0.00027673,5]
[387847637,1758927037945,-231.24545137,0.00027618,2]
[387847638,1758927037954,-500.0,0.00027618,2]
[387847639,1758927037963,-500.0,0.00027618,2]
[387847640,1758927037972,-500.0,0.00027618,2]
[387847641,1758927037982,-500.0,0.00027618,2]
[387847642,1758927037991,-500.0,0.00027618,2]
[387847643,1758927038000,-500.0,0.00027618,2]
[387847644,1758927038009,-500.0,0.00027618,2]
[387847645,1758927038018,-550.55872354,0.00027618,2]
[387847646,1758927038027,-500.0,0.00027618,2]
[387847647,1758927038036,-475.87427379,0.00027673,5]
[387847648,1758927038045,-500.0,0.000277,2]
[387847649,1758927038054,-500.73192138,0.000277,5]
[387847650,1758927038064,-500.0,0.00027786,5]
[387847651,1758927038073,-165.274316,0.00027798,2]
[387847652,1758927038081,-500.0,0.000278,5]
[387847653,1758927038090,-500.0,0.000278,5]
[387847654,1758927038099,-500.0,0.000278,5]
[387847655,1758927038108,-1000.0,0.00028221,5]
[387847656,1758927038117,-1000.0,0.00028221,5]
[387847657,1758927038127,-1000.0228115,0.00028248,2]
[387847658,1758927038136,-1000.0,0.00028334,5]
[387847659,1758927038145,-1000.0,0.00028348,5]
[387847660,1758927038156,-1000.0,0.00028348,5]
[387847661,1758927038165,-1000.0,0.00028348,5]
[387847662,1758927038174,-500.0,0.00028645,2]
[387847663,1758927038183,-150.0,0.00028645,2]
[387847664,1758927038192,-163.0,0.00028645,2]
[387847665,1758927038201,-192.378,0.0002873,20]
[387847666,1758927038210,-1500.0,0.00028768,5]
[387847667,1758927038220,-1643.91202023,0.00028768,5]
[387847668,1758927038229,-1005.04014538,0.00028882,5]
[387847669,1758927038238,-268.285551,0.00028896,5]
[387847670,1758927038247,-1000.0,0.00028896,5]
[387847671,1758927038256,-1500.0,0.00028896,5]
[387847672,1758927038265,-495.43768839,0.00028919,2]
[387847673,1758927038274,-362.0,0.00029029,2]
[387847674,1758927038283,-2000.0,0.00029316,5]
[387847675,1758927038292,-859.72210148,0.00029436,2]
[387847676,1758927038301,-2000.0,0.00029444,5]
[387847677,1758927038310,-199.0,0.00029805,14]
[387847678,1758927038319,-420.0,0.00029839,2]
[387847679,1758927038329,-1300.77750041,0.00029864,5]
[387847680,1758927038338,-1680.0,0.00029969,2]
[387847681,1758927038347,-1268.49632641,0.00029992,5]
[387847682,1758927038356,-1000.0,0.00030131,14]
[387847683,1758927038365,-151.0,0.00030131,14]
[387847684,1758927038375,-1000.0,0.00030136,120]
[387847685,1758927038384,-551.57504214,0.00030203,13]
[387847686,1758927038393,-160.0,0.00030243,2]
[387847687,1758927038403,-1000.0,0.00030273,120]
[387847688,1758927038412,-233.71402077,0.00030319,2]
[387847689,1758927038422,-21360.7351206,0.000304,2]
[387847690,1758927038431,-4640.42092254,0.000304,2]
[387847691,1758927038439,-840.0,0.0003041,120]
[387847692,1758927038449,-151.0,0.00030629,14]
[387847693,1758927038458,-164.743299,0.00030734,20]
[387847694,1758927038467,-260.0,0.00030791,2]
[387847695,1758927038476,-7590.59352996,0.00030793,2]
[387847696,1758927038486,-185.65,0.00030825,2]
[387847697,1758927038495,-185.65,0.00030825,2]
[387847698,1758927038504,-185.65,0.00030825,2]
[387847699,1758927038513,-160.0,0.00030825,2]
[387847700,1758927038522,-1671.97,0.00030842,3]
[387847701,1758927038531,-835.99,0.00030842,3]
[387847702,1758927038540,-417.99,0.00030842,3]
[387847703,1758927038549,-209.0,0.00030842,3]
[387847704,1758927038558,-627.01,0.00030842,3]
[387847705,1758927038567,-982.25,0.00030842,3]
[387847706,1758927038576,-1007.55,0.00030842,3]
[387847707,1758927038585,-761.99,0.00030842,3]
[387847708,1758927038594,-571.52,0.00030842,3]
[387847709,1758927038603,-21360.7351206,0.00030852,2]
[387847710,1758927038714,-4640.42092254,0.00030852,2]
[387847711,1758927038727,-22325.37279902,0.00030862,2]
[387847712,1758927038739,-500.0,0.00030873,5]
[387847713,1758927038749,-500.0,0.00030873,5]
[387847714,1758927038759,-500.0,0.00030873,5]
[387847715,1758927038768,-380.99,0.00030873,3]
[387847716,1758927038778,-190.5,0.00030873,3]
[387847717,1758927038787,-64082.2053617,0.00030883,2]
[387847718,1758927038796,-13921.2627676,0.00030883,2]
[387847719,1758927038805,-128164.410723,0.00030893,2]
[387847720,1758927038814,-37123.3673803,0.00030893,2]
[387847721,1758927038823,-370000.0,0.00030903,2]
[387847722,1758927038832,-4640.42092254,0.00030952,2]
[387847723,1758927038841,-239.4254129,0.00030973,5]
[387847724,1758927038850,-500.0,0.00030973,5]
[387847725,1758927038859,-500.0,0.00030973,5]
[387847726,1758927038868,-500.81366583,0.00030973,5]
[387847727,1758927038878,-500.0,0.00030973,5]
[387847728,1758927038887,-500.0,0.00030973,5]
[387847729,1758927038896,-500.0,0.00030973,2]
[387847730,1758927038907,-500.0,0.00030973,5]
[387847731,1758927038916,-511.97124642,0.00030973,5]
[387847732,1758927038925,-502.97187597,0.00030973,5]
[387847733,1758927038935,-500.0,0.00030973,5]
[387847734,1758927038944,-500.0,0.00030973,5]
[387847735,1758927038953,-500.0,0.00030973,5]
[387847736,1758927038962,-7590.59352992,0.00031069,2]
[387847737,1758927038971,-151.0,0.00031127,14]
[387847738,1758927038980,-360.0,0.00031339,2]
[387847739,1758927038989,-7590.59352992,0.00031344,2]
[387847740,1758927038999,-859.72210148,0.0003135,2]
[387847741,1758927039008,-164.743299,0.0003136,20]
[387847742,1758927039017,-4640.42092254,0.00031369,2]
[387847743,1758927039027,-500.0,0.00031373,2]
[387847744,1758927039036,-500.0,0.00031373,5]
[387847745,1758927039046,-500.94151046,0.00031373,5]
[387847746,1758927039055,-500.0,0.00031373,5]
[387847747,1758927039064,-22325.37279902,0.00031379,2]
[387847748,1758927039074,-151.0,0.000314,15]
[387847749,1758927039083,-500.0,0.00031421,5]
[387847750,1758927039092,-355.727614,0.00031421,5]
[387847751,1758927039102,-1000.0,0.00031421,5]
[387847752,1758927039112,-151.0,0.000315,10]
[387847753,1758927039122,-151.0,0.000315,13]
[387847754,1758927039131,-4640.42092254,0.00031511,2]
[387847755,1758927039140,-500.0,0.00031521,5]
[387847756,1758927039151,-1000.0,0.00031521,5]
[387847757,1758927039161,-1000.0,0.00031521,5]
[387847758,1758927039170,-1000.0,0.00031521,5]
[387847759,1758927039179,-1000.0,0.00031521,5]
[387847760,1758927039189,-1000.0,0.00031521,5]
[387847761,1758927039199,-1000.0,0.00031521,5]
[387847762,1758927039209,-151.0,0.000316,15]
[387847763,1758927039219,-151.0,0.000316,16]
[387847764,1758927039228,-7590.59352992,0.0003162,2]
[387847765,1758927039237,-151.0,0.00031624,14]
[387847766,1758927039247,-551.57504214,0.00031675,16]
[387847767,1758927039256,-152.30656426,0.00031696,5]
[387847768,1758927039266,-151.0,0.00031696,5]
[387847769,1758927039276,-151.0,0.00031696,5]
[387847770,1758927039286,-500.0,0.00031696,5]
[387847771,1758927039296,-151.0,0.00031696,5]
[387847772,1758927039307,-151.0,0.00031696,5]
[387847773,1758927039320,-158.6496239,0.00031696,5]
[387847774,1758927039329,-151.0,0.00031696,5]
[387847775,1758927039339,-151.0,0.00031696,5]
[387847776,1758927039348,-151.0,0.00031696,5]
[387847777,1758927039358,-151.0,0.00031696,5]
[387847778,1758927039367,-151.0,0.00031696,5]
[387847779,1758927039376,-151.0,0.00031696,5]
[387847780,1758927039385,-151.0,0.00031696,5]
[387847781,1758927039395,-151.0,0.00031696,5]
[387847782,1758927039408,-151.0,0.00031696,5]
[387847783,1758927039417,-151.0,0.00031696,5]
[387847784,1758927039426,-151.0,0.00031696,5]
[387847785,1758927039435,-151.0,0.00031696,2]
[387847786,1758927039445,-151.0,0.00031696,5]
[387847787,1758927039454,-151.0,0.00031696,5]
[387847788,1758927039464,-151.0,0.00031696,5]
[387847789,1758927039473,-151.0,0.000317,10]
[387847790,1758927039483,-509.74174054,0.00031726,2]
[387847791,1758927039492,-1000.0,0.00031726,2]
[387847792,1758927039502,-1000.0,0.00031726,2]
[387847793,1758927039511,-1000.0,0.00031726,2]
[387847794,1758927039520,-1000.0,0.00031726,2]
[387847795,1758927039530,-1000.0,0.00031726,2]
[387847796,1758927039539,-1000.0,0.00031726,2]
[387847797,1758927039550,-1000.0,0.00031726,2]
[387847798,1758927039559,-1000.0,0.00031736,2]
[387847799,1758927039569,-1000.0,0.00031736,2]
[387847800,1758927039578,-1000.0,0.00031736,2]
[387847801,1758927039587,-1000.0,0.00031736,2]
[387847802,1758927039597,-1000.0,0.00031736,2]
[387847803,1758927039606,-589.48817063,0.00031736,2]
[387847804,1758927039616,-500.0,0.0003178,120]
[387847805,1758927039625,-500.0,0.0003178,120]
[387847806,1758927039635,-500.0,0.0003178,120]
[387847807,1758927039645,-422.27477997,0.0003178,120]
[387847808,1758927039654,-500.0,0.0003178,120]
[387847809,1758927039664,-500.0,0.0003178,120]
[387847810,1758927039673,-500.0,0.0003178,120]
[387847811,1758927039682,-500.0,0.0003178,120]
[387847812,1758927039692,-500.0,0.0003178,120]
[387847813,1758927039701,-500.0,0.0003178,120]
[387847814,1758927039710,-595.85169742,0.0003178,120]
[387847815,1758927039724,-4640.42092254,0.0003179,2]
[387847816,1758927039733,-7732.61,0.000318,2]
[387847817,1758927039743,-151.0,0.000318,19]
[387847818,1758927039752,-151.0,0.000318,11]
[387847819,1758927039761,-151.0,0.000318,13]
[387847820,1758927039771,-151.0,0.000318,17]
[387847821,1758927039780,-829.09738661,0.00031837,28]
[387847822,1758927039789,-264.27996856,0.00031873,5]
[387847823,1758927039798,-500.0,0.00031873,5]
[387847824,1758927039808,-500.0,0.00031873,5]
[387847825,1758927039817,-500.0,0.00031873,5]
[387847826,1758927039827,-500.0,0.00031873,5]
[387847827,1758927039836,-500.0,0.00031873,5]
[387847828,1758927039846,-460.0,0.00031887,2]
[387847829,1758927039855,-1758.08699514,0.00031894,2]
[387847830,1758927039865,-7590.59352992,0.00031895,2]
[387847831,1758927039874,-22325.37279902,0.00031895,2]
[387847832,1758927039883,-8992.28661471,0.00031895,2]
[387847833,1758927039892,-174.00897462,0.00031897,2]
[387847834,1758927039902,-151.0,0.000319,17]
[387847835,1758927039912,-151.0,0.000319,20]
[387847836,1758927039921,-151.0,0.000319,17]
[387847837,1758927039931,-151.0,0.000319,16]
[387847838,1758927039940,-500.0,0.00031921,5]
[387847839,1758927039950,-1000.0,0.00031921,5]
[387847840,1758927039959,-533.56179022,0.00031933,2]
[387847841,1758927039969,-163.21079816,0.00031933,2]
[387847842,1758927039979,-652.84319263,0.00031933,2]
[387847843,1758927039988,-332.93877476,0.00031933,2]
[387847844,1758927039997,-599.28979456,0.00031933,2]
[387847845,1758927040006,-214.68014068,0.00031933,2]
[387847846,1758927040016,-858.72056272,0.00031933,2]
[387847847,1758927040026,-368.75763672,0.00031945,2]
[387847848,1758927040035,-663.7637461,0.00031945,2]
[387847849,1758927040045,-4640.42092254,0.0003196,2]
[387847850,1758927040142,-165.94254313,0.00031968,5]
[387847851,1758927040152,-151.53827853,0.0003197,5]
[387847852,1758927040161,-500.0,0.0003197,5]
[387847853,1758927040172,-151.0,0.0003197,5]
[387847854,1758927040185,-151.0,0.0003197,5]
[387847855,1758927040197,-151.0,0.0003197,5]
[387847856,1758927040213,-247.61315356,0.0003197,5]
[387847857,1758927040223,-151.0,0.0003197,5]
[387847858,1758927040232,-151.0,0.0003197,5]
[387847859,1758927040242,-151.0,0.0003197,5]
[387847860,1758927040251,-198.0,0.0003197,2]
[387847861,1758927040261,-151.0,0.0003197,5]
[387847862,1758927040270,-500.0,0.00031973,5]
[387847863,1758927040280,-501.74999125,0.00031973,5]
[387847864,1758927040289,-500.0,0.00031973,5]
[387847865,1758927040298,-232.0,0.00031995,120]
[387847866,1758927040308,-160.77352352,0.00031996,10]
[387847867,1758927040317,-4935.29009241,0.00031996,2]
[387847868,1758927040327,-6414353.80628621,0.00031997,20]
[387847869,1758927040781,-408.0,0.00031997,20]
[387847892,1758927042879,-1484.93,0.00031997,20]
[387847893,1758927042896,-271.35708111,0.00031997,20]
[387847895,1758927045004,199.99,0.00025205,2]
[387847899,1758927046241,-77922.93115754,0.00031997,20]
[387847928,1758927060822,417.15472785,0.00025,10]
[387847929,1758927154433,311.757,0.00026846,120]
[387847932,1758927190495,351.86854924,0.000199,2]
[387847933,1758927190527,467.73343584,0.000199,2]
[387847934,1758927190679,819.60198498,0.00021372,2]
[387847935,1758927191233,819.60198498,0.00022844,2]
[387847936,1758927191382,819.60198498,0.00024316,2]
[387847938,1758927236077,157.0,0.00022877,8]
[387847939,1758927242318,153.01278888,0.00025205,2]
[387847940,1758927249923,192.525954,0.00025205,2]
[387847941,1758927265250,196.67385239,0.00025205,2]
[387847942,1758927360241,268.30994521,0.000199,2]
[387847943,1758927360566,268.30994493,0.00022844,2]
[387847944,1758927361058,268.30994493,0.00021372,2]
[387847945,1758927375469,236.72565056,0.00025205,2]
[387847977,1758927477581,8019.0,0.00025,2]
[387847978,1758927517431,160.0,0.00025205,2]
[387847979,1758927529786,612.66233081,0.000199,2]
[387847980,1758927529840,612.66233058,0.00024316,2]
[387847981,1758927530324,612.66233058,0.00021372,2]
[387847982,1758927536133,1171.33507775,0.00025205,2]
[387847983,1758927551551,575.76222479,0.00025205,2]
[387847986,1758927635260,273.0,8.8e-07,2]
[387847990,1758927699232,274.55268612,0.000199,2]
[387847991,1758927699693,274.55268585,0.00021372,2]
[387847992,1758927699851,274.55268585,0.00022844,2]
[387847993,1758927700243,274.55268585,0.00024316,2]
[387847994,1758927712462,695.15428433,0.00025205,2]
[387847995,1758927935997,3323.88187337,0.00021122,2]
[387847996,1758927943368,300.0,0.000252,2]
[387847997,1758927954500,300.0,0.000252,2]
[387847998,1758927960293,1441.60893663,0.00025205,2]
[387847999,1758927965727,300.0,0.000252,2]
[387848001,1758927968212,299.99,0.00025205,2]
[387848006,1758927976622,300.0,0.000252,2]
[387848007,1758927977405,1417.46533589,0.00025205,2]
[387848009,1758927987801,300.0,0.000252,2]
[387848010,1758927999836,1706.46936208,0.00025205,2]
[387848011,1758928022079,310.59449203,0.00025205,2]
[387848012,1758928022102,1395.88487005,0.00025205,2]
[387848013,1758928038068,1161.76660554,0.00025205,2]
[387848014,1758928038152,-196.692861,0.00025616,2]
[387848015,1758928038172,-1231.60123655,0.00025679,2]
[387848016,1758928045367,1562.03651438,0.00025205,2]
[387848017,1758928061509,584.80512865,0.00025205,2]
[387848018,1758928069541,633.32045115,0.00025205,2]
[387848019,1758928080031,161.78,0.00018182,2]
[387848020,1758928080629,161.76,0.00018182,2]
[387848021,1758928092999,866.21354959,0.00025205,2]
[387848022,1758928117581,3472.44288064,0.00021122,2]
[387848023,1758928117604,1527.55711936,0.00021122,2]
[387848024,1758928137186,4941.71257989,0.00025205,2]
[387848025,1758928144681,160.0,0.00025205,2]
[387848026,1758928145708,4898.29742011,0.00025205,2]
[387848027,1758928145744,101.70257989,0.00025205,2]
[387848030,1758928157228,-8236.1622972,0.00025477,2]
[387848031,1758928157248,-344.61637225,0.00025679,2]
[387848032,1758928157270,-300.0,0.00025745,2]
[387848033,1758928157291,-273.33699682,0.00025746,2]
[387848034,1758928157313,-500.0,0.00025746,2]
[387848035,1758928157335,-500.0,0.00025746,2]
[387848036,1758928157356,-500.0,0.00025746,2]
[387848037,1758928157377,-500.0,0.00025746,2]
[387848038,1758928157397,-500.0,0.00025746,2]
[387848039,1758928157419,-332.26433373,0.00025746,2]